bitfinex-derivatives/quotes_ETHF0:USTF0_20250416
["timestamp","ask_amount","ask_price","bid_price","bid_amount"]
[1744831134634,11.87061762,1563.1,1562.8,3.2078]
[1744831134839,8.33423846,1563.0,1562.8,3.2078]
[1744831135146,8.33423846,1563.0,1562.9,1.27964]
[1744831135341,4.681,1563.0,1562.9,3.72214]
[1744831135642,9.61379846,1563.0,1562.8,4.48746]
[1744831135945,3.65323846,1562.9,1562.8,4.48746]
[1744831136137,7.37707846,1562.9,1562.7,11.84661916]
[1744831136340,3.65323846,1562.8,1562.7,6.97231916]
[1744831136540,6.09743846,1562.8,1562.7,6.97231916]
[1744831136739,7.37715846,1562.8,1562.7,5.69257916]
[1744831136954,12.37715846,1562.8,1562.7,0.00957916]
[1744831137652,18.34882589,1562.8,1562.7,0.00957916]
[1744831137848,17.06910589,1562.8,1562.2,8.47704999]
[1744831138046,1.27989,1562.6,1562.3,1.2801]
[1744831138246,3.72419,1562.5,1562.3,42.0801]
[1744831138447,4.7223,1562.5,1562.3,42.0801]
[1744831138646,3.65323846,1562.4,1562.3,42.0801]
[1744831139053,6.07203846,1562.4,1562.3,42.0801]
[1744831139756,3.65323846,1562.4,1562.3,42.0801]
[1744831139955,2.4188,1562.6,1562.5,1.27997]
[1744831140154,3.65323846,1562.6,1562.5,1.27997]
[1744831140455,3.65323846,1562.6,1562.4,8.0618]
[1744831140642,3.65323846,1562.5,1562.4,9.34178]
[1744831142247,1.27984,1562.7,1562.4,8.0618]
[1744831142452,7.27817846,1562.7,1562.4,9.34179]
[1744831142647,3.65323846,1562.6,1562.5,1.27997]
[1744831142853,5.99833846,1562.6,1562.5,3.53247]
[1744831143354,6.20460859,1562.9,1562.8,1.27972]
[1744831143558,9.85784705,1562.9,1562.8,6.96372]
[1744831144255,6.18545027,1562.9,1562.8,11.96372]
[1744831144664,4.70888027,1562.9,1562.8,17.81972]
[1744831144855,4.70888027,1562.9,1562.8,12.81972]
[1744831145251,8.36211873,1562.9,1562.8,12.81972]
[1744831145452,0.00957916,1563.1,1562.9,1.27962]
[1744831145754,3.65323846,1563.0,1562.9,3.59952]
[1744831146058,3.65323846,1563.0,1562.8,5.684]
[1744831146252,6.10343846,1562.9,1562.8,6.96372]
[1744831146559,1.27988,1562.7,1562.6,5.684]
[1744831146856,9.93311846,1562.7,1562.6,5.684]
[1744831147253,12.38331846,1562.7,1562.6,5.684]
[1744831147448,12.38331846,1562.7,1562.3,54.6599]
[1744831147449,1.28005,1562.5,1562.3,54.6599]
[1744831147649,2.4502,1562.4,1562.3,46.484]
[1744831147849,6.10343846,1562.4,1562.3,47.76413]
[1744831148552,3.65323846,1562.4,1562.3,47.76413]
[1744831148753,13.84586743,1562.8,1562.3,47.76413]
[1744831148754,3.60567,1562.7,1562.4,1.28004]
[1744831148950,5.97903846,1562.7,1562.4,2.3819]
[1744831149155,1.28,1562.5,1562.3,46.484]
[1744831149362,2.3258,1562.4,1562.3,47.76413]
[1744831149665,7.25908846,1562.4,1562.3,46.484]
[1744831149863,5.97903846,1562.4,1562.3,47.76413]
[1744831150557,5.97903846,1562.4,1562.3,46.484]
[1744831150763,5.97903846,1562.4,1562.3,47.76413]
[1744831151156,3.65323846,1562.4,1562.3,47.76413]
[1744831151356,3.65323846,1562.4,1562.3,50.97193]
[1744831152763,13.84586743,1562.8,1562.6,1.27982]
[1744831153064,13.84586743,1562.8,1562.4,4.8722]
[1744831153065,3.65323846,1562.7,1562.4,4.8722]
[1744831153261,3.65323846,1562.7,1562.6,1.27989]
[1744831153460,7.0484,1562.8,1562.7,1.27981]
[1744831153656,7.0484,1562.8,1562.7,2.4177]
[1744831153861,13.90943846,1562.8,1562.6,5.685]
[1744831154066,4.93304846,1562.7,1562.6,5.685]
[1744831154255,5.91293846,1562.7,1562.6,6.96489]
[1744831154767,5.91293846,1562.7,1562.6,5.685]
[1744831154960,1.27997,1562.5,1562.4,2.3614]
[1744831155161,1.28005,1562.4,1562.3,46.485]
[1744831155367,7.19298846,1562.4,1562.3,46.485]
[1744831155667,5.91293846,1562.4,1562.3,47.76513]
[1744831155966,5.91293846,1562.4,1562.3,46.485]
[1744831156171,5.91293846,1562.4,1562.3,47.76513]
[1744831156562,9.17946743,1562.7,1562.6,1.27989]
[1744831156771,3.65323846,1562.6,1562.5,1.27991]
[1744831157062,9.17946743,1563.0,1562.5,1.27991]
[1744831157063,8.33215884,1563.0,1562.9,1.27964]
[1744831157258,11.9853973,1563.0,1562.9,6.96464]
[1744831157455,8.33215884,1563.0,1562.9,6.96464]
[1744831158066,8.33215884,1563.0,1562.9,9.33214]
[1744831158469,11.9853973,1563.0,1562.9,9.33214]
[1744831159870,11.9853973,1563.0,1562.9,8.0525]
[1744831160069,14.3688973,1563.0,1562.9,8.0525]
[1744831160258,7.31629846,1563.0,1562.9,5.685]
[1744831160456,10.52409846,1563.0,1562.9,5.685]
[1744831160768,9.73609846,1563.0,1562.9,5.685]
[1744831160969,8.45653846,1563.0,1562.9,5.685]
[1744831161168,9.73609846,1563.0,1562.9,5.685]
[1744831162468,8.45653846,1563.0,1562.9,5.685]
[1744831162668,3.65323846,1563.0,1562.9,6.96464]
[1744831162969,0.00957916,1563.1,1563.0,1.27956]
[1744831163171,3.66281762,1563.1,1563.0,3.73586]
[1744831163670,0.00957916,1563.1,1563.0,3.73586]
[1744831163875,0.00957916,1563.1,1563.0,8.73586]
[1744831164373,3.66281762,1563.1,1563.0,3.73586]
[1744831164772,0.00957916,1563.1,1563.0,3.73586]
[1744831165071,3.66281762,1563.1,1563.0,3.73586]
[1744831166773,3.66281762,1563.1,1563.0,2.4563]
[1744831167161,6.09021762,1563.1,1563.0,2.4563]
[1744831167365,6.09021762,1563.1,1563.0,3.73586]
[1744831167780,6.09021762,1563.1,1563.0,2.4563]
[1744831167972,6.09021762,1563.1,1563.0,1.27956]
[1744831168174,6.09021762,1563.1,1562.9,11.44768]
[1744831168474,3.65323846,1563.0,1562.9,11.44768]
[1744831168770,6.08063846,1563.0,1562.9,5.685]
[1744831169072,9.61419846,1563.0,1562.9,5.685]
[1744831169268,3.65323846,1563.0,1562.9,6.96464]
[1744831169664,3.65323846,1563.0,1562.9,5.685]
[1744831169868,7.19579846,1563.0,1562.9,5.685]
[1744831170065,1.27989,1562.7,1562.4,6.94902]
[1744831170263,3.54289,1562.6,1562.4,7.9227]
[1744831170462,2.263,1562.6,1562.4,7.9227]
[1744831170666,3.65323846,1562.5,1562.4,7.9227]
[1744831170886,4.93320846,1562.5,1562.4,5.669]
[1744831171062,9.66210846,1562.5,1562.4,5.669]
[1744831171377,1.2801,1562.4,1562.2,2.2537]
[1744831171567,2.263,1562.3,1562.2,44.33392]
[1744831171766,5.91623846,1562.3,1562.2,44.33392]
[1744831172973,7.19636846,1562.3,1562.2,43.0537]
[1744831173270,7.19636846,1562.3,1562.1,14.14604999]
[1744831173466,3.65323846,1562.2,1562.1,14.14604999]
[1744831173668,6.00293846,1562.2,1562.1,14.14604999]
[1744831173869,6.00293846,1562.2,1562.1,46.469]
[1744831174172,9.21073846,1562.2,1561.9,91.0704]
[1744831174473,4.93355846,1562.1,1562.0,5.669]
[1744831174674,7.28325846,1562.1,1562.0,5.669]
[1744831175272,9.61115846,1562.1,1562.0,5.669]
[1744831175576,8.33083846,1562.1,1562.0,6.94938]
[1744831175777,8.33083846,1562.1,1562.0,9.19558]
[1744831176169,3.65323846,1562.1,1562.0,9.19558]
[1744831176473,0.00957916,1562.3,1562.2,1.28022]
[1744831176675,3.66281762,1562.3,1562.2,1.28022]
[1744831176873,3.66281762,1562.3,1562.2,4.48802]
[1744831177071,3.66281762,1562.3,1562.2,1.28022]
[1744831177573,0.00957916,1562.3,1562.2,1.28022]
[1744831177770,0.00957916,1562.3,1562.2,6.28022]
[1744831178075,0.00957916,1562.3,1562.2,1.28022]
[1744831178267,3.66281762,1562.3,1562.2,1.28022]
[1744831178669,3.66281762,1562.3,1562.2,4.48802]
[1744831178874,0.00957916,1562.3,1562.2,6.28022]
[1744831179579,0.00957916,1562.3,1562.2,9.48802]
[1744831179780,0.00957916,1562.3,1562.2,14.13022]
[1744831181993,0.00957916,1562.3,1562.2,9.13022]
[1744831182277,3.66281762,1562.3,1562.2,5.92242]
[1744831182674,0.00957916,1562.3,1562.2,5.92242]
[1744831183079,0.00957916,1562.3,1562.2,9.13022]
[1744831183577,0.00957916,1562.3,1562.2,5.92242]
[1744831183980,0.00957916,1562.3,1562.2,14.13022]
[1744831184588,13.13435884,1563.0,1562.9,1.27964]
[1744831184776,10.75455884,1563.0,1562.9,1.27964]
[1744831185083,8.33215884,1563.0,1562.9,4.48744]
[1744831185283,11.9853973,1563.0,1562.9,3.51624]
[1744831185478,14.3187973,1563.0,1562.9,2.2366]
[1744831185685,14.3187973,1563.0,1562.9,3.51624]
[1744831185879,11.9853973,1563.0,1562.9,3.51624]
[1744831186074,8.33215884,1563.0,1562.9,3.51624]
[1744831186780,11.9853973,1563.0,1562.9,2.2366]
[1744831186982,11.9853973,1563.0,1562.8,5.67957916]
[1744831186983,1.27964,1562.9,1562.8,5.67957916]
[1744831187183,9.53837846,1562.9,1562.8,5.67957916]
[1744831187481,17.74617846,1562.9,1562.8,5.67957916]
[1744831187978,8.25873846,1562.9,1562.8,5.67957916]
[1744831188782,8.25873846,1562.9,1562.8,6.95929916]
[1744831188970,8.25873846,1562.9,1562.8,5.67957916]
[1744831189173,8.25873846,1562.9,1562.8,6.95929916]
[1744831189579,8.25873846,1562.9,1562.8,5.67957916]
[1744831189881,1.27985,1562.7,1562.5,5.654]
[1744831190079,2.254,1562.6,1562.5,6.93397]
[1744831190385,5.90723846,1562.6,1562.5,6.93397]
[1744831190882,5.90723846,1562.6,1562.5,5.654]
[1744831191077,5.90723846,1562.6,1562.5,6.93397]
[1744831191278,5.90723846,1562.6,1562.5,5.654]
[1744831191676,5.90723846,1562.6,1562.5,6.93397]
[1744831192181,5.90723846,1562.6,1562.5,5.654]
[1744831192584,5.90723846,1562.6,1562.5,6.93397]
[1744831195086,3.65323846,1562.6,1562.5,6.93397]
[1744831196488,3.65323846,1562.6,1562.5,9.20097]
[1744831196693,3.65323846,1562.6,1562.5,7.921]
[1744831196880,4.93312846,1562.6,1562.5,5.654]
[1744831197186,7.39892846,1562.6,1562.5,5.654]
[1744831198284,3.19993,1562.5,1562.1,5.654]
[1744831198482,1.28022,1562.2,1562.1,5.654]
[1744831198681,1.28022,1562.2,1562.0,1.28032]
[1744831198986,7.39933846,1562.1,1562.0,1.28032]
[1744831199175,6.11903846,1562.1,1562.0,1.28032]
[1744831199681,7.39933846,1562.1,1562.0,1.28032]
[1744831199881,7.39933846,1562.1,1561.9,42.0804]
[1744831200083,3.65323846,1562.0,1561.9,42.0804]
[1744831200277,5.98973846,1562.0,1561.8,5.655]
[1744831200482,3.65323846,1561.9,1561.8,5.655]
[1744831200781,3.65323846,1561.9,1561.8,47.73554]
[1744831201177,3.65323846,1561.9,1561.8,50.07264]
[1744831201372,4.7525,1562.2,1562.1,1.2803]
[1744831201574,4.7525,1562.2,1561.9,3.20107]
[1744831201575,3.65323846,1562.1,1561.9,4.5819]
[1744831201883,5.98973846,1562.1,1562.0,1.28038]
[1744831202190,2.3365,1562.1,1562.0,1.28038]
[1744831202383,7.27004846,1562.1,1561.9,3.61751]
[1744831202690,6.86103846,1562.0,1561.8,5.655]
[1744831202889,2.371,1561.9,1561.8,6.93552]
[1744831203189,2.371,1561.9,1561.8,5.655]
[1744831203190,6.02423846,1561.9,1561.8,5.655]
[1744831203686,3.65323846,1561.9,1561.8,6.93554]
[1744831204282,3.65323846,1561.9,1561.8,5.655]
[1744831204683,6.02423846,1561.9,1561.8,6.93554]
[1744831205485,6.02423846,1561.9,1561.8,5.655]
[1744831205691,7.30469846,1561.9,1561.8,5.655]
[1744831206179,9.72939846,1561.9,1561.8,5.655]
[1744831206386,8.44893846,1561.9,1561.8,5.655]
[1744831206586,9.72939846,1561.9,1561.8,5.655]
[1744831207490,8.44893846,1561.9,1561.8,6.93554]
[1744831207684,6.02423846,1561.9,1561.8,6.93554]
[1744831208392,7.30469846,1561.9,1561.8,5.655]
[1744831208588,6.02423846,1561.9,1561.8,6.93554]
[1744831208790,6.02423846,1561.9,1561.8,9.23844]
[1744831210793,7.30469846,1561.9,1561.8,7.9579]
[1744831211190,7.30469846,1561.9,1561.8,5.655]
[1744831212090,7.30469846,1561.9,1561.2,5.657]
[1744831212091,3.20137,1561.8,1561.2,5.657]
[1744831212291,1.28086,1561.5,1561.2,8.1203]
[1744831212483,1.29043916,1561.5,1561.3,44.54425]
[1744831212690,0.00957916,1561.5,1561.4,1.28087]
[1744831212894,0.00957916,1561.5,1561.4,6.03997]
[1744831213094,3.66281762,1561.5,1561.4,6.03997]
[1744831213399,4.94360762,1561.5,1561.4,2.4633]
[1744831213986,1.28087,1561.4,1561.3,40.8]
[1744831214192,4.93410846,1561.4,1561.3,43.2633]
[1744831214499,7.26590846,1561.4,1561.3,40.8]
[1744831214691,5.98503846,1561.4,1561.3,1.28095]
[1744831214886,3.20239,1561.3,1560.8,8.47704999]
[1744831215191,1.2811,1561.2,1560.8,8.47704999]
[1744831215387,9.58243846,1561.2,1560.9,3.70726]
[1744831215597,4.93435846,1561.1,1561.0,2.426]
[1744831215791,5.87733846,1561.1,1561.0,2.426]
[1744831216197,9.08513846,1561.1,1560.8,12.07874999]
[1744831216397,7.15853846,1561.0,1560.9,2.426]
[1744831216595,5.87733846,1561.0,1560.9,3.70728]
[1744831216802,3.65323846,1561.0,1560.9,3.70728]
[1744831216990,3.65323846,1561.0,1560.9,6.00708]
[1744831217190,3.65323846,1561.0,1560.8,8.47704999]
[1744831217499,10.36641846,1560.9,1560.8,8.47704999]
[1744831217801,9.60961846,1560.9,1560.8,8.47704999]
[1744831218005,5.97166743,1561.0,1560.9,1.28128]
[1744831218193,9.62490589,1561.0,1560.9,1.28128]
[1744831218395,9.62490589,1561.0,1560.9,2.2894]
[1744831218595,10.90610589,1561.0,1560.9,2.2894]
[1744831218795,10.90610589,1561.0,1560.8,8.47704999]
[1744831218796,15.02970589,1561.0,1560.8,8.47704999]
[1744831218998,15.02970589,1561.0,1560.7,21.58037499]
[1744831218999,7.13151846,1560.9,1560.7,9.22782]
[1744831219203,4.48916,1560.8,1560.7,2.2894]
[1744831219507,1.28145,1560.7,1560.5,9.26001]
[1744831219800,4.48933,1560.6,1560.5,5.658]
[1744831220002,3.65323846,1560.6,1560.5,46.458]
[1744831220300,3.65323846,1560.6,1560.3,2.2515]
[1744831220301,1.28169,1560.4,1560.3,2.2515]
[1744831220490,5.85023846,1560.5,1560.4,2.2894]
[1744831220694,3.65323846,1560.5,1560.4,2.2894]
[1744831221189,7.11544846,1560.5,1560.4,2.2894]
[1744831221396,5.83383846,1560.5,1560.3,2.2515]
[1744831221595,1.28188,1560.2,1559.9,97.6078]
[1744831221796,1.28188,1560.2,1560.0,2.2045]
[1744831222096,3.65323846,1560.1,1560.0,3.48652]
[1744831222297,7.11566846,1560.3,1560.0,3.48651]
[1744831222602,1.28202,1560.0,1559.9,5.644]
[1744831222803,4.48982,1560.0,1559.8,10.68154999]
[1744831223005,3.65323846,1559.9,1559.8,11.96373999]
[1744831223195,4.93517846,1560.1,1559.9,1.28209]
[1744831223395,7.11577846,1560.1,1559.9,1.28209]
[1744831223601,3.65323846,1560.0,1559.8,9.75917999]
[1744831223797,3.65323846,1560.0,1559.6,13.4189]
[1744831223998,3.65323846,1560.0,1559.6,16.6247]
[1744831224309,1.28181,1560.3,1560.0,1.28197]
[1744831224603,3.65323846,1560.2,1560.0,6.92697]
[1744831225106,1.29109014,1560.7,1560.4,1.28163]
[1744831225403,0.00961014,1560.7,1560.6,1.28153]
[1744831225597,0.00961014,1560.7,1560.6,11.92753]
[1744831225991,3.6628486,1560.7,1560.6,9.12283]
[1744831226600,0.00961014,1560.7,1560.6,9.12283]
[1744831227302,3.6628486,1560.7,1560.6,9.12283]
[1744831229200,3.6628486,1560.7,1560.6,7.8413]
[1744831229406,3.6628486,1560.7,1560.6,5.646]
[1744831229703,5.8365486,1560.7,1560.6,6.92753]
[1744831230015,1.28153,1560.6,1560.3,9.15004]
[1744831230300,5.91093846,1560.5,1560.3,5.646]
[1744831230502,5.91093846,1560.5,1560.3,6.92774]
[1744831230701,3.65323846,1560.4,1560.3,6.92777]
[1744831231004,3.65323846,1560.5,1560.3,46.446]
[1744831231202,3.65323846,1560.5,1560.4,1.28169]
[1744831231403,5.97166743,1560.6,1560.4,1.28169]
[1744831231597,3.65323846,1560.5,1560.4,1.28169]
[1744831234709,5.97166743,1560.6,1560.5,1.28161]
[1744831234905,9.62490589,1560.6,1560.5,5.66511]
[1744831235102,3.65323846,1560.6,1560.5,5.66511]
[1744831237410,3.65323846,1560.6,1560.5,7.97061]
[1744831238609,0.00961014,1560.7,1560.6,1.28153]
[1744831238809,0.00961014,1560.7,1560.6,3.58703]
[1744831239010,3.6628486,1560.7,1560.6,3.58703]
[1744831239504,3.6628486,1560.7,1560.6,2.3055]
[1744831239811,5.9172486,1560.7,1560.6,3.58703]
[1744831241611,3.6628486,1560.7,1560.6,3.58703]
[1744831243609,3.6628486,1560.7,1560.6,9.23303]
[1744831244412,3.6628486,1560.7,1560.6,12.44083]
[1744831244613,3.6628486,1560.7,1560.6,9.23303]
[1744831245616,3.098e-05,1560.7,1560.6,17.44083]
[1744831246014,3.098e-05,1560.7,1560.6,9.23303]
[1744831246213,3.098e-05,1560.7,1560.6,12.44083]
[1744831246514,3.65326944,1560.7,1560.6,9.23303]
[1744831246715,3.65326944,1560.7,1560.6,12.44083]
[1744831247219,3.098e-05,1560.7,1560.6,12.44083]
[1744831247414,3.098e-05,1560.7,1560.6,17.44083]
[1744831247714,3.098e-05,1560.7,1560.6,23.29683]
[1744831248306,10.57176743,1561.5,1561.4,1.28087]
[1744831248513,4.6001,1561.5,1561.4,1.28087]
[1744831248709,8.25333846,1561.5,1561.4,1.28087]
[1744831249015,1.28089,1561.4,1561.2,6.92702]
[1744831249216,5.79723846,1561.4,1561.3,1.28095]
[1744831249513,3.65323846,1561.3,1561.2,6.92698]
[1744831249714,5.79723846,1561.3,1561.2,6.92698]
[1744831250107,14.00503846,1561.3,1561.1,0.00961014]
[1744831250314,5.79723846,1561.2,1561.1,0.00961014]
[1744831250520,3.42504,1561.2,1561.1,0.00961014]
[1744831250708,5.79723846,1561.2,1561.1,1.29073014]
[1744831251508,5.79723846,1561.2,1561.1,0.00961014]
[1744831252514,5.79723846,1561.2,1561.1,1.29073014]
[1744831259023,9.09836014,1561.5,1561.4,1.28087]
[1744831259024,4.60971014,1561.5,1561.4,1.28087]
[1744831259212,3.6628486,1561.5,1561.4,6.91187]
[1744831259715,9.9436986,1561.5,1561.2,42.081]
[1744831260021,13.56913846,1561.4,1561.2,40.8]
[1744831260212,2.2941,1561.3,1561.1,5.64061014]
[1744831260412,4.48884,1561.2,1561.1,0.00961014]
[1744831260709,8.14207846,1561.2,1561.1,0.00961014]
[1744831260911,15.40607846,1561.2,1561.1,0.00961014]
[1744831261220,12.19827846,1561.2,1561.1,0.00961014]
[1744831261419,10.40607846,1561.2,1561.1,0.00961014]
[1744831261721,9.12503846,1561.2,1561.1,1.29073014]
[1744831261912,3.65323846,1561.2,1561.1,6.92173014]
[1744831262112,4.414,1561.4,1561.3,1.28095]
[1744831262318,8.06723846,1561.4,1561.3,1.28095]
[1744831262519,0.00961014,1561.5,1561.4,1.28087]
[1744831262822,0.00961014,1561.5,1561.4,9.21547]
[1744831263007,0.00961014,1561.5,1561.4,14.21547]
[1744831263212,8.34176898,1561.5,1561.4,14.21547]
[1744831263521,8.34176898,1561.5,1561.4,17.42327]
[1744831263820,8.34176898,1561.5,1561.4,14.21547]
[1744831264415,11.99500744,1561.5,1561.4,9.21547]
[1744831264625,14.19490744,1561.5,1561.4,9.21547]
[1744831264916,11.99500744,1561.5,1561.4,9.21547]
[1744831265616,11.99500744,1561.5,1561.4,7.9346]
[1744831265817,14.19490744,1561.5,1561.4,5.631]
[1744831266022,24.59610744,1561.5,1561.1,0.00961014]
[1744831266316,24.59610744,1561.5,1560.8,5.856]
[1744831266317,3.2026,1561.2,1560.7,5.63]
[1744831266516,7.7514,1561.1,1560.5,23.46202498]
[1744831266718,12.68580846,1561.1,1560.8,1.28135]
[1744831266920,1.28129,1560.9,1560.7,1.28137]
[1744831267119,3.65323846,1561.0,1560.7,1.28137]
[1744831267120,3.63156,1560.8,1560.7,2.1948]
[1744831267322,2.3502,1560.8,1560.7,3.47625]
[1744831267523,6.00343846,1560.8,1560.7,3.47625]
[1744831267929,3.65323846,1560.8,1560.7,3.47625]
[1744831268120,5.4012,1561.1,1560.7,3.47625]
[1744831268121,4.5436,1561.1,1560.9,1.28124]
[1744831268317,4.5436,1561.1,1561.0,3.476]
[1744831268318,2.3502,1561.1,1561.0,3.476]
[1744831268619,2.3216,1561.3,1561.1,1.28106]
[1744831268821,5.97483846,1561.3,1561.2,3.47584]
[1744831269024,2.3216,1561.3,1561.2,2.1948]
[1744831269225,8.32503846,1561.3,1561.2,2.1948]
[1744831269422,8.32503846,1561.3,1561.2,3.47584]
[1744831269926,8.32503846,1561.3,1561.2,2.1948]
[1744831270623,8.32503846,1561.3,1561.2,3.47584]
[1744831271821,3.65323846,1561.3,1561.2,3.47584]
[1744831272329,0.00961014,1561.5,1561.4,1.28087]
[1744831272627,3.6628486,1561.5,1561.4,6.91087]
[1744831273419,5.8490486,1561.5,1561.4,5.63]
[1744831273626,10.3376386,1561.5,1561.4,5.63]
[1744831273831,1.2809,1561.4,1561.0,5.856]
[1744831274027,3.2078,1561.3,1561.1,9.11758]
[1744831274227,2.1862,1561.2,1561.1,9.11758]
[1744831274429,5.83943846,1561.2,1561.1,9.11758]
[1744831276022,3.65323846,1561.2,1561.1,9.11758]
[1744831277031,3.65323846,1561.2,1561.1,12.32538]
[1744831277331,3.65323846,1561.2,1561.1,9.11758]
[1744831277727,3.65323846,1561.2,1561.1,12.32538]
[1744831278235,0.00961014,1561.5,1561.4,1.28087]
[1744831278429,1.4e-07,1561.5,1561.4,6.91087]
[1744831278635,1.4e-07,1561.5,1561.4,11.91087]
[1744831278822,1.4e-07,1561.5,1561.4,14.13857]
[1744831281136,2.1352586,1561.5,1561.4,9.13857]
[1744831282843,2.1352586,1561.5,1561.4,12.34637]
[1744831283040,2.1352586,1561.5,1561.4,9.13857]
[1744831284049,1.28087,1561.4,1561.3,0.00961014]
[1744831284236,7.89632846,1561.4,1561.3,0.00961014]
[1744831284442,10.20582846,1561.4,1561.3,0.00961014]
[1744831284638,8.92495846,1561.4,1561.3,1.29056014]
[1744831284852,2.13525846,1561.4,1561.3,6.90456014]
[1744831286449,4.45725846,1561.4,1561.3,6.90456014]
[1744831287753,2.13525846,1561.4,1561.3,6.90456014]
[1744831288249,2.13525846,1561.4,1561.3,9.17946014]
[1744831288451,2.13525846,1561.4,1561.3,11.36566014]
[1744831289550,2.13525846,1561.4,1561.3,5.62361014]
[1744831289752,4.49805846,1561.4,1561.3,5.62361014]
[1744831290050,5.77892846,1561.4,1561.3,5.62361014]
[1744831290247,10.10922846,1561.4,1561.3,5.62361014]
[1744831291350,8.82835846,1561.4,1561.3,6.90456014]
[1744831291551,10.10922846,1561.4,1561.3,5.62361014]
[1744831292150,8.82835846,1561.4,1561.3,6.90456014]
[1744831293155,10.10922846,1561.4,1561.3,6.90456014]
[1744831294054,8.82835846,1561.4,1561.3,6.90456014]
[1744831294455,2.13525846,1561.4,1561.3,6.90456014]
[1744831294658,2.13525846,1561.4,1561.3,9.16056014]
[1744831294853,1.4e-07,1561.5,1561.4,1.28087]
[1744831295057,2.1352586,1561.5,1561.4,3.53017]
[1744831295651,1.4e-07,1561.5,1561.4,6.73797]
[1744831295856,1.4e-07,1561.5,1561.4,3.53017]
[1744831296761,1.4e-07,1561.5,1561.4,11.73797]
[1744831297354,1.4e-07,1561.5,1561.4,52.53797]
[1744831298362,6.3044777,1561.6,1561.4,52.53797]
[1744831298363,2.1935577,1561.6,1561.5,1.28079]
[1744831298558,6.34925459,1562.1,1562.0,1.28038]
[1744831298858,6.34925459,1562.1,1562.0,6.89438]
[1744831299158,6.34925459,1562.1,1562.0,47.69438]
[1744831299363,6.34925459,1562.1,1562.0,49.93828]
[1744831299664,6.34925459,1562.1,1562.0,48.6579]
[1744831299854,6.34925459,1562.1,1562.0,49.93828]
[1744831300054,6.34925459,1562.1,1562.0,48.6579]
[1744831300261,8.63245459,1562.1,1562.0,48.6579]
[1744831300460,10.76771305,1562.1,1562.0,48.6579]
[1744831300763,8.48451305,1562.1,1562.0,49.93828]
[1744831301258,6.34925459,1562.1,1562.0,49.93828]
[1744831302559,0.00961014,1562.2,1562.1,1.2803]
[1744831302857,0.00961014,1562.2,1562.1,4.4881]
[1744831303458,1.4e-07,1562.2,1562.1,50.2881]
[1744831303658,0.09943,1562.7,1562.6,1.27989]
[1744831303859,0.09943,1562.7,1562.6,6.89289]
[1744831304062,2.23468846,1562.7,1562.6,5.613]
[1744831304273,4.36888846,1562.7,1562.6,6.89289]
[1744831304459,6.65298846,1562.7,1562.6,6.89289]
[1744831305273,4.51878846,1562.7,1562.6,6.89289]
[1744831305458,4.51878846,1562.7,1562.6,9.13599]
[1744831305770,2.23468846,1562.7,1562.6,9.13599]
[1744831307563,0.09943,1562.7,1562.6,14.13599]
[1744831308161,0.09943,1562.7,1562.6,54.93599]
[1744831308359,0.09943,1562.7,1562.6,49.93599]
[1744831308562,2.23468846,1562.7,1562.6,49.93599]
[1744831309170,3.51449846,1562.7,1562.6,46.412]
[1744831309469,15.09089846,1562.7,1562.5,5.62161014]
[1744831309666,4.27065846,1562.6,1562.5,5.62161014]
[1744831309871,4.27065846,1562.6,1562.5,46.42161014]
[1744831310071,4.27065846,1562.6,1562.5,47.70158014]
[1744831310464,4.27065846,1562.6,1562.5,5.62161014]
[1744831310764,4.27065846,1562.6,1562.5,6.90158014]
[1744831311975,2.13525846,1562.6,1562.5,9.05858014]
[1744831313973,0.09943,1562.7,1562.6,1.27989]
[1744831314174,0.09943,1562.7,1562.6,5.74129]
[1744831314175,2.23468846,1562.7,1562.6,5.74129]
[1744831314372,0.09943,1562.7,1562.6,8.94909]
[1744831314772,0.09943,1562.7,1562.6,5.74129]
[1744831314972,0.09943,1562.7,1562.6,46.54129]
[1744831316375,0.09943,1562.7,1562.6,49.74909]
[1744831318171,0.09943,1562.7,1562.6,46.54129]
[1744831318370,0.09943,1562.7,1562.6,49.74909]
[1744831319776,2.23468846,1562.7,1562.6,49.74909]
[1744831319984,2.23468846,1562.7,1562.6,46.54129]
[1744831321379,2.23468846,1562.7,1562.6,49.74909]
[1744831321570,2.23468846,1562.7,1562.6,46.54129]
[1744831322065,5.44248846,1562.7,1562.6,44.35419]
[1744831322266,2.13525846,1562.6,1562.2,1.28018]
[1744831322476,4.48782,1562.5,1562.2,1.28018]
[1744831322775,4.48782,1562.5,1562.1,48.5539]
[1744831322776,4.338,1562.4,1562.1,48.5539]
[1744831323076,2.2573,1562.3,1562.1,5.594]
[1744831323378,1.28022,1562.2,1562.1,5.594]
[1744831323682,2.13525846,1562.2,1562.1,5.594]
[1744831323878,10.67277846,1562.2,1562.1,5.594]
[1744831325079,9.39255846,1562.2,1562.1,6.8743]
[1744831325483,10.67277846,1562.2,1562.1,5.594]
[1744831325777,9.39255846,1562.2,1562.1,6.8743]
[1744831326178,10.67277846,1562.2,1562.1,6.8743]
[1744831326478,10.67277846,1562.2,1562.1,5.594]
[1744831326781,10.67277846,1562.2,1562.1,6.8743]
[1744831327286,9.39255846,1562.2,1562.1,5.594]
[1744831327473,2.13525846,1562.2,1562.1,6.8743]
[1744831327674,2.0807,1562.4,1562.3,1.28013]
[1744831328173,4.21595846,1562.4,1562.3,1.28013]
[1744831328374,6.36395846,1562.4,1562.2,3.40136]
[1744831328574,2.148,1562.3,1562.2,3.40136]
[1744831328776,4.28325846,1562.3,1562.2,3.40136]
[1744831328976,4.28325846,1562.3,1562.2,44.20136]
[1744831330082,4.28325846,1562.3,1562.2,42.9212]
[1744831330282,5.56338846,1562.3,1562.2,42.9212]
[1744831330782,4.28325846,1562.3,1562.2,44.20142]
[1744831331174,5.56338846,1562.3,1562.2,42.9212]
[1744831331893,4.28325846,1562.3,1562.2,44.20142]
[1744831332074,5.56338846,1562.3,1562.2,42.9212]
[1744831332275,4.28325846,1562.3,1562.2,44.20142]
[1744831333086,5.56338846,1562.3,1562.2,44.20142]
[1744831333276,4.28325846,1562.3,1562.2,42.9212]
[1744831333686,4.28325846,1562.3,1562.2,44.20142]